Cogmind - Beta 12 @@@ ROGUE MODE // 2023.04.03 @ 16:43:25 Player: btmk16 Result: Destroyed by X-57 Shotgunner with High-powered Shotgun Performance ------------- Evolutions (2) 1000 Regions Visited (8) 1600 Robots Destroyed (81) 405 Value Destroyed (1980) 1980 Prototype IDs (25) 500 Alien Tech Used (0) 0 Bonus (583) 583 TOTAL SCORE: 6068 Bonus ------- High Alert Combat Kills 108 Entered Garrisons 200 Aligned with FarCom 300 Friendly Fire -25 Cogmind --------- Core Integrity 0/550 Matter 268/300 Energy 100/100 System Corruption 6% Temperature Cool (0) Movement Treading (240) Ox1 Location -8/Garrison Parts ------- > --- POWER (1) -------- (None) > --- PROPULSION (2) --- Light Treads Light Treads > --- UTILITY (6) ------ Heat Sink Improved Heat Sink High-capacity Storage Unit Hacking Suite Hacking Suite > --- WEAPON (2) ------- Gauss Rifle > --- INVENTORY (20) --- Carbon-fiber Leg Compact Wheel Flight Unit Heat Sink Small Storage Unit Improved Terrain Scanner Seismic Detector 0b10 Alert Chip Heavy Armor Plating Relay Coupler [NC] (35) Relay Coupler [Grunt] (40) Shock Rifle Light Assault Rifle Light Assault Rifle Heavy Explosive Trap Heavy Explosive Trap Heavy Explosive Trap Heavy Explosive Trap Heavy Explosive Trap Peak State ------------ > --- POWER ------------ Light Angular Momentum Engine > --- PROPULSION ------- Carbon-fiber Leg Carbon-fiber Leg > --- UTILITY ---------- Improved Heat Sink Improved Heat Sink Advanced Heat Sink High-capacity Storage Unit Hacking Suite Hacking Suite > --- WEAPON ----------- Heavy Laser Gauss Rifle > --- INVENTORY -------- Light Ion Engine Compact Wheel Flight Unit Small Storage Unit Improved Terrain Scanner Seismic Detector 0b10 Alert Chip Heavy Armor Plating Particle Gun Light Assault Rifle Light Assault Rifle Heavy Mace Heavy Explosive Trap Heavy Explosive Trap Heavy Explosive Trap Heavy Explosive Trap Heavy Explosive Trap [Rating: 40] Favorites ----------- Power Deuterium Engine Engine Deuterium Engine Power Core Micro Nuclear Core Propulsion Light Treads Treads Light Treads Leg Carbon-fiber Leg Wheel Wheel Utility Hacking Suite Device Improved Heat Sink Storage High-capacity Storage Unit Processor Visual Processing Unit Hackware Hacking Suite Protection Medium Armor Plating Weapon Light Cannon Energy Gun Medium Laser Ballistic Gun Light Assault Rifle Ballistic Cannon Light Cannon Launcher Rocket Launcher Impact Weapon Heavy Mace Build | -11 -10 -10 -9 -9 -9 -8 -8 -8 ------- Run | Jun Mat Min Mat Min Exi Min Mat Gar Slots Evolved 4 | . . . 2 . . . 2 . Power . | . . . . . . . . . Propulsion . | . . . . . . . . . Utility 4 | . . . 2 . . . 2 . Weapon . | . . . . . . . . . Parts Attached 74 | 7 5 2 5 6 . 2 9 38 Power 9 | 2 . . . 1 . . . 6 Engine 8 | 2 . . . 1 . . . 5 Core 1 | . . . . . . . . 1 Reactor . | . . . . . . . . . Propulsion 18 | 2 . . . 3 . 1 1 11 Treads 6 | 2 . . . . . . . 4 Leg 3 | . . . . . . . . 3 Wheel 9 | . . . . 3 . 1 1 4 Hover . | . . . . . . . . . Flight . | . . . . . . . . . Utility 21 | 1 3 . 4 1 . . 5 7 Device 9 | . . . . . . . 2 7 Storage 4 | 1 2 . . 1 . . . . Processor 1 | . 1 . . . . . . . Hackware 5 | . . . 4 . . . 1 . Protection 2 | . . . . . . . 2 . Artifact . | . . . . . . . . . Weapon 26 | 2 2 2 1 1 . 1 3 14 Energy Gun 10 | 1 . 2 1 . . . 1 5 Energy Cannon . | . . . . . . . . . Ballistic Gun 8 | 1 . . . . . . 2 5 Ballistic Cannon 2 | . 2 . . . . . . . Launcher 4 | . . . . 1 . 1 . 2 Special Weapon . | . . . . . . . . . Impact Weapon 2 | . . . . . . . . 2 Slashing Weapon . | . . . . . . . . . Piercing Weapon . | . . . . . . . . . Special Melee Weapon . | . . . . . . . . . Unidentified Prototypes . | . . . . . . . . . Parts Lost 36 | . . 4 . 1 . 2 5 24 Power 5 | . . 1 . . . . . 4 Propulsion 9 | . . 1 . 1 . 1 . 6 Utility 11 | . . . . . . . 4 7 Weapon 11 | . . 2 . . . 1 1 7 Highest Loss Streak 9 | . . 4 . 1 . 2 2 9 To Critical Strikes . | . . . . . . . . . Average Slot Usage (%) 95 | . 99 92 53 91 100 99 95 94 Engine 10 | . 14 12 . 10 11 11 9 5 Treads 11 | . 28 26 . . . . . 4 Leg 1 | . . . . . . . . 7 Wheel 8 | . . . . 20 22 21 16 4 Device 5 | . . . . . . . 6 24 Storage 11 | . 14 13 . 10 11 11 9 9 Processor 4 | . 13 13 . . . . . . Hackware 17 | . . . 44 33 33 33 28 18 Energy Gun 6 | . 3 . 9 11 11 11 8 7 Ballistic Gun 2 | . 3 . . . . . 7 7 Ballistic Cannon 8 | . 21 25 . . . . . . Launcher 2 | . . . . 5 11 11 2 . Naked Turns 48 | . . 45 3 . . . . . Heaviest Build 65 | 13 31 31 2 55 55 55 65 60 Greatest Support 40 | 40 40 40 3 26 26 26 20 40 Greatest Overweight (x) 6 | . . . . 5 2 5 6 5 Average Overweight (x) 1 | . . . . 2 2 2 2 2 Largest Inventory Capacity 20 | 8 15 15 5 20 20 20 20 20 Average Capacity 17 | 7 14 14 5 19 20 20 20 20 Most Carried 20 | 7 15 15 5 17 18 18 20 20 Average Carried 15 | 3 14 14 4 12 17 17 17 18 Final Capacity 20 | 8 15 5 5 20 20 20 20 20 Final Carried 20 | 7 15 5 5 17 18 17 19 20 Class Distribution -------------------- 41% | Hacker-Mutant 38% | Mutant 19% | Scavenger-Mutant Dominant Class ---------------- Mutant | -10/Materials Mutant | -10/Mines Hacker-Mutant | -9/Materials Hacker-Mutant | -9/Mines Hacker-Mutant | -9/Exiles Hacker-Mutant | -8/Mines Hacker-Mutant | -8/Materials Scavenger-Mutant | -8/Garrison Resources | -11 -10 -10 -9 -9 -9 -8 -8 -8 ----------- Run | Jun Mat Min Mat Min Exi Min Mat Gar Matter Collected 1832 | 221 537 56 . 209 . 47 164 598 Remotely 178 | . . . . . . . . 178 Salvage Created 2200 | 19 500 73 . 408 . 158 219 823 Parts 147 | 2 34 2 . 30 . 11 16 52 Haulers Intercepted 2 | . 2 . . . . . . . Recyclers Shooed 1 | . . . . 1 . . . . Parts Field Recycled . | . . . . . . . . . Retrieved Matter . | . . . . . . . . . Parts Self-Destructed . | . . . . . . . . . Prevented . | . . . . . . . . . Kills | -11 -10 -10 -9 -9 -9 -8 -8 -8 ------- Run | Jun Mat Min Mat Min Exi Min Mat Gar Combat Hostiles Destroyed 59 | . 13 1 . 8 . 9 7 21 Melee 1 | . . . . . . . . 1 Guns 25 | . 3 1 . . . . 3 18 Cannons 10 | . 10 . . . . . . . AOE 21 | . . . . 8 . 9 3 1 Classes Destroyed 14 | 1 7 1 . 2 . . 1 2 Worker 3 | . 2 . . 1 . . . . Builder 4 | . . . . 4 . . . . Tunneler 5 | 1 . 1 . 2 . 1 . . Hauler 2 | . 2 . . . . . . . Recycler 6 | . 1 1 . 3 . 1 . . Operator 1 | . 1 . . . . . . . Watcher 2 | . 2 . . . . . . . Swarmer 24 | . 3 . . 6 . 6 3 6 Grunt 19 | . 10 . . 1 . 3 3 2 Duelist 1 | . . . . 1 . . . . Sentry 5 | . . . . . . . 1 4 Hunter 6 | . . . . . . . . 6 Programmer 3 | . . . . . . . . 3 Assembled 1 | . . 1 . . . . . . Best Kill Streak 6 | 1 3 1 . 5 . 6 4 5 Combat Bots Only 6 | . 3 1 . 3 . 6 4 5 Max Kills in Single Turn 5 | 1 2 1 . 5 . 3 3 2 Gunslinging . | . . . . . . . . . Exploded 3 | . . . . 3 . 3 3 1 Melee 1 | . . . . . . . . 1 Uniques/NPCs Destroyed . | . . . . . . . . . Combat | -11 -10 -10 -9 -9 -9 -8 -8 -8 -------- Run | Jun Mat Min Mat Min Exi Min Mat Gar Damage Taken 3972 | . 488 370 27 124 . 182 601 2180 Core 803 | . 73 87 27 56 . 10 119 431 Absorbed by Shields 56 | . . . . . . . . 56 Core Remaining (%) 70 | 100 . 36 . . . 76 . . Volleys Fired 253 | 2 67 11 . 38 . 12 26 97 Largest 2 | 2 2 2 . 2 . 1 2 2 Hottest 97 | 70 70 90 . 83 . 50 85 97 Shots Fired 408 | 4 126 22 . 39 . 12 43 162 Gun 258 | 4 18 4 . 31 . 1 40 160 Cannon 126 | . 108 18 . . . . . . Launcher 24 | . . . . 8 . 11 3 2 Special . | . . . . . . . . . Kinetic 240 | 2 117 18 . . . . 20 83 Thermal 140 | 2 9 . . 31 . 1 20 77 Explosive 24 | . . . . 8 . 11 3 2 Electromagnetic 4 | . . 4 . . . . . . Robot Hit Streak 13 | 3 13 4 . 5 . 7 13 11 Robot Miss Streak 6 | . 5 6 . 2 . . 4 3 Penetration Max 1 | . . . . . . . . 1 Secondary Targets 2 | . . . . . . . 2 . Max Gunslinging Chain 1 | . . . . . . . 1 . Shots Hit Robots 249 | 3 75 13 . 21 . 6 29 102 Core Hits 137 | 2 27 5 . 24 . 16 16 47 Critical Kills . | . . . . . . . . . Critical Parts Destroyed 2 | . . . . . . . . 2 Critical Strikes 21 | . 6 . . 5 . 1 2 7 Burn 14 | . 1 . . 5 . 1 2 5 Destroy 1 | . . . . . . . . 1 Blast 5 | . 5 . . . . . . . Smash 1 | . . . . . . . . 1 Melee Attacks 4 | . . . . . . . . 4 Impact 4 | . . . . . . . . 4 Slashing . | . . . . . . . . . Piercing . | . . . . . . . . . Sneak Attacks . | . . . . . . . . . Combat Hostiles . | . . . . . . . . . Follow-up Attacks . | . . . . . . . . . Damage Inflicted 5525 | 36 1226 221 . 942 . 728 457 1915 Guns 2579 | 32 152 55 . 262 . 13 322 1743 Cannons 1239 | . 1074 165 . . . . . . Explosions 1611 | . . . . 680 . 715 105 111 Melee 61 | . . . . . . . . 61 Ramming 35 | 4 . 1 . . . . 30 . Kinetic 2339 | 6 1127 165 . . . . 132 909 Thermal 1424 | 26 99 . . 262 . 13 190 834 Explosive 1611 | . . . . 680 . 715 105 111 Electromagnetic 55 | . . 55 . . . . . . Impact 61 | . . . . . . . . 61 Slashing . | . . . . . . . . . Piercing . | . . . . . . . . . Highest Corruption 6 | . . 1 . . . . 5 6 Average Corruption 4 | . . 1 . . . . 2 5 Corruption Purged . | . . . . . . . . . Corruption Blocked . | . . . . . . . . . Effects 45 | . . 1 . . . . 6 38 Message Errors 5 | . . . . . . . . 5 Matter Fused 13 | . . . . . . . 1 12 Heat Flow Errors 7 | . . . . . . . 2 5 Energy Discharges 5 | . . . . . . . 1 4 Parts Rejected 4 | . . 1 . . . . 1 2 Parts Fused 1 | . . . . . . . . 1 Data Loss (minor) 4 | . . . . . . . 1 3 Data Loss (major) 1 | . . . . . . . . 1 Misfires 3 | . . . . . . . . 3 Alerts 1 | . . . . . . . . 1 Weapon Failures 1 | . . . . . . . . 1 Overload Shots . | . . . . . . . . . Overflow Damage 98 | . 8 . . 53 . . . 37 Projectiles 8 | . 8 . . . . . . . Explosions 53 | . . . . 53 . . . . Melee 37 | . . . . . . . . 37 Knockbacks 18 | . 11 7 . . . . . . Impact . | . . . . . . . . . Kinetic 17 | . 11 6 . . . . . . Secondary 1 | . . 1 . . . . . . Self-Inflicted Damage 159 | . . . . 47 . 20 92 . Shots 5 | . . . . 1 . 1 3 . Rammed 3 | 1 . 1 . . . . 1 . Targets Rammed 3 | 1 . 1 . . . . 1 . Kicked . | . . . . . . . . . Crushed . | . . . . . . . . . Highest Temperature 273 | 40 132 70 . 24 . 12 208 273 Average Temperature 36 | 20 35 14 . 8 . 7 90 52 Received Heat Transfer 961 | . 201 40 9 . . 63 342 306 Siege Activations . | . . . . . . . . . Robots Corrupted . | . . . . . . . . . Combat Hostiles . | . . . . . . . . . Parts Fried . | . . . . . . . . . Impact Corruptions 2 | . . . . . . . . 2 Robots Melted 1 | . . . . . . . 1 . Combat Hostiles 1 | . . . . . . . 1 . Parts Melted 4 | . . . . . . . 1 3 Heat Transferred 4477 | 74 370 . . 1147 . 111 666 2109 Parts Sabotaged . | . . . . . . . . . Parts Stolen . | . . . . . . . . . Parts Stripped . | . . . . . . . . . Power Chain Reactions . | . . . . . . . . . Missiles Intercepted . | . . . . . . . . . Alert | -11 -10 -10 -9 -9 -9 -8 -8 -8 ------- Run | Jun Mat Min Mat Min Exi Min Mat Gar Peak Influence 571 | 5 244 75 23 176 . 177 267 571 Initial 160 | . 3 75 . 8 . . 68 160 Average 152 | 1 124 44 9 67 . 44 205 367 Maximum Alert Level 2 | . 1 . . . . . 1 2 Low Security (%) 71 | 100 90 100 100 100 . 100 35 3 Level 1 19 | . 9 . . . . . 64 56 Level 2 9 | . . . . . . . . 39 Level 3 . | . . . . . . . . . Level 4 . | . . . . . . . . . Level 5 . | . . . . . . . . . High Security . | . . . . . . . . . Max Security . | . . . . . . . . . Squads Dispatched 7 | . 5 . . . . . 2 . Investigation 3 | . 2 . . . . . 1 . Extermination . | . . . . . . . . . Reinforcement 4 | . 3 . . . . . 1 . Assault . | . . . . . . . . . Garrison . | . . . . . . . . . Intercept . | . . . . . . . . . Searches Triggered . | . . . . . . . . . Construction Impeded . | . . . . . . . . . Haulers Reinforced . | . . . . . . . . . Active Scanning Responses . | . . . . . . . . . Cargo Convoy Interrupts . | . . . . . . . . . Stealth | -11 -10 -10 -9 -9 -9 -8 -8 -8 --------- Run | Jun Mat Min Mat Min Exi Min Mat Gar Distress Signals 1 | . 1 . . . . . . . Communications Jammed . | . . . . . . . . . Distress Signals . | . . . . . . . . . Times Spotted 97 | . 28 18 1 8 . 7 11 24 Peak Tracking Total 13 | . 5 13 1 3 . 3 3 6 Tactical Retreats 10 | . 8 2 . . . . . . Traps | -11 -10 -10 -9 -9 -9 -8 -8 -8 ------- Run | Jun Mat Min Mat Min Exi Min Mat Gar Traps Triggered 8 | . 3 . . . . . 3 2 Indirectly . | . . . . . . . . . Trap Hack Attempts . | . . . . . . . . . Triggered . | . . . . . . . . . Disarmed . | . . . . . . . . . Reprogrammed . | . . . . . . . . . Reused . | . . . . . . . . . Traps Extracted . | . . . . . . . . . Installed . | . . . . . . . . . Triggered 1 | . . 1 . . . . . . Most Traps Carried 5 | . . . . 5 5 5 5 5 Machines | -11 -10 -10 -9 -9 -9 -8 -8 -8 ---------- Run | Jun Mat Min Mat Min Exi Min Mat Gar Machines Disabled 3 | . 1 . . 1 . . 1 . Max in Single Turn 1 | . 1 . . 1 . . 1 . Machines Repaired . | . . . . . . . . . Machines Sabotaged . | . . . . . . . . . Overloaded Fab Kills . | . . . . . . . . . Hacking | -11 -10 -10 -9 -9 -9 -8 -8 -8 --------- Run | Jun Mat Min Mat Min Exi Min Mat Gar Machines Accessed 10 | . 3 . 1 1 2 . 2 1 Terminals 7 | . 3 . 1 1 . . 1 1 Fabricators . | . . . . . . . . . Repair Stations . | . . . . . . . . . Recycling Units . | . . . . . . . . . Scanalyzers . | . . . . . . . . . Garrison Access 1 | . . . . . . . 1 . Total Hacks 21 | . 8 . 1 3 2 . 4 3 Successful 12 | . 5 . 1 1 2 . 3 . Failed 7 | . 2 . . 1 . . 1 3 Catastrophic 1 | . 1 . . . . . . . Database Lockouts 2 | . 1 . . 1 . . . . Manual 9 | . 3 . . 3 1 . . 2 Terminals 18 | . 8 . 1 3 . . 3 3 Fabricators . | . . . . . . . . . Repair Stations . | . . . . . . . . . Recycling Units . | . . . . . . . . . Scanalyzers . | . . . . . . . . . Garrison Access 1 | . . . . . . . 1 . Terminal Hacks 11 | . 5 . 1 1 2 . 2 . Record 1 | . . . . . 1 . . . Robot Analysis 2 | . 1 . . 1 . . . . Prototype ID Bank 1 | . 1 . . . . . . . Branch Access Points 3 | . 1 . 1 . . . 1 . Terminal Index 1 | . 1 . . . . . . . Alert Level 1 | . . . . . . . 1 . Locate Traps 1 | . 1 . . . . . . . EX-Prototype ID Bank 1 | . . . . . 1 . . . Fabricator Hacks . | . . . . . . . . . Repair Station Hacks . | . . . . . . . . . Recycling Unit Hacks . | . . . . . . . . . Scanalyzer . | . . . . . . . . . Garrison Access Hacks 1 | . . . . . . . 1 . Unlock Access 1 | . . . . . . . 1 . Unauthorized Hacks . | . . . . . . . . . Terminals . | . . . . . . . . . Fabricators . | . . . . . . . . . Repair Stations . | . . . . . . . . . Recycling Units . | . . . . . . . . . Scanalyzers . | . . . . . . . . . Garrison Access . | . . . . . . . . . Data Cores Recovered 1 | . 1 . . . . . . . Used . | . . . . . . . . . Hacking Detections 5 | . 2 . . 1 . . 1 1 Full Trace Events 1 | . . . . . . . . 1 Feedback Events . | . . . . . . . . . Feedback Blocked . | . . . . . . . . . Robot Schematics Acquired . | . . . . . . . . . Robots Built . | . . . . . . . . . Authchips . | . . . . . . . . . Time . | . . . . . . . . . Total Robot Build Rating . | . . . . . . . . . Part Schematics Acquired . | . . . . . . . . . Parts Built . | . . . . . . . . . Authchips . | . . . . . . . . . Time . | . . . . . . . . . Total Part Build Rating . | . . . . . . . . . Parts Repaired . | . . . . . . . . . Time . | . . . . . . . . . Parts Recycled . | . . . . . . . . . Recycled Matter . | . . . . . . . . . Retrieved Matter . | . . . . . . . . . Retrieved Components . | . . . . . . . . . Parts Scanalyzed . | . . . . . . . . . Part Schematics Acquired . | . . . . . . . . . Parts Damaged . | . . . . . . . . . Bothacking | -11 -10 -10 -9 -9 -9 -8 -8 -8 ------------ Run | Jun Mat Min Mat Min Exi Min Mat Gar Used RIF Installer . | . . . . . . . . . Robots Hacked . | . . . . . . . . . Non-combat . | . . . . . . . . . Combat . | . . . . . . . . . Robot Hacks Applied . | . . . . . . . . . Relay Couplers Released . | . . . . . . . . . Fabnet Peak Effective % . | . . . . . . . . . Robots Rewired . | . . . . . . . . . Allies Hacked . | . . . . . . . . . Hacks Repelled . | . . . . . . . . . Allies | -11 -10 -10 -9 -9 -9 -8 -8 -8 -------- Run | Jun Mat Min Mat Min Exi Min Mat Gar Total Allies 5 | . . 3 . 2 . . . . Largest Group 3 | . . 3 . 2 2 . . . Highest-Rated Group 43 | . . 40 . 43 43 . . . Highest-Rated Ally 31 | . . 16 . 31 31 . . . Total Orders . | . . . . . . . . . Ally Attacks 11 | . . 11 . . . . . . Total Damage 97 | . . 97 . . . . . . Kills 1 | . . 1 . . . . . . Allies Corrupted . | . . . . . . . . . Allies Melted . | . . . . . . . . . Intel | -11 -10 -10 -9 -9 -9 -8 -8 -8 ------- Run | Jun Mat Min Mat Min Exi Min Mat Gar Robot Analysis Total 2 | . 1 . . 1 . . . . Derelict Logs Recovered 1 | . . . . 1 . . . . Drone Launches . | . . . . . . . . . Drone Recoveries . | . . . . . . . . . Exploration | -11 -10 -10 -9 -9 -9 -8 -8 -8 ------------- Run | Jun Mat Min Mat Min Exi Min Mat Gar Turns Passed 6057 | 109 1540 700 81 1057 259 629 356 1326 Spaces Moved 3854 | 57 817 474 145 828 216 519 219 579 Core 259 | 4 . 90 145 20 . . . . Treads 1297 | 53 817 384 . . . . . 43 Legs 224 | . . . . . . . . 224 Wheels 2074 | . . . . 808 216 519 219 312 Hover . | . . . . . . . . . Flight . | . . . . . . . . . Fastest Speed 50 | 50 160 50 50 50 120 110 110 110 Average Speed 133 | 152 160 139 50 110 120 116 123 165 Slowest Speed 240 | 160 160 160 50 155 120 155 170 240 Overloaded Moves . | . . . . . . . . . Propulsion Burnouts . | . . . . . . . . . Robots Hopped . | . . . . . . . . . Cave-ins Triggered . | . . . . . . . . . Exploration Rate (%) 56 | 4 97 73 13 99 61 96 20 46 Regions Visited 8 Branch Regions 4 Pre-discovered Areas 2 | . . . . 1 1 . . . Known Exits Taken 3 | . 1 . 1 . . . 1 . Unknown Exits Taken 5 | 1 . 1 . 1 1 1 . . Scrap Searched 5 | . . 2 . 2 . 1 . . Spaces Dug . | . . . . . . . . . Terrain Destroyed 232 | . . . . 86 . 79 57 10 Melee . | . . . . . . . . . Projectile . | . . . . . . . . . AOE 232 | . . . . 86 . 79 57 10 Terrain Rammed . | . . . . . . . . . Walls Destroyed . | . . . . . . . . . Machines Disabled . | . . . . . . . . . Actions | -11 -10 -10 -9 -9 -9 -8 -8 -8 --------- Run | Jun Mat Min Mat Min Exi Min Mat Gar Total 4362 | 72 930 491 150 928 216 532 264 779 Wait 102 | . 20 . . 42 . . 4 36 Move 3848 | 57 816 473 144 827 215 518 219 579 Hop . | . . . . . . . . . Pick Up 47 | 6 13 2 1 15 1 . 4 5 Fast Attach 38 | 6 3 . 4 3 . 1 3 18 Attach 22 | . . 1 1 2 . 1 5 12 Detach 8 | . 2 . . . . . 1 5 Swap 14 | 1 2 1 . 1 . . 1 8 Drop 13 | . 7 2 . . . . . 4 Fire 253 | 2 67 11 . 38 . 12 26 97 Melee 4 | . . . . . . . . 4 Ram 1 | . . . . . . . 1 . Kick . | . . . . . . . . . Crush 1 | . . 1 . . . . . . Escape Stasis 11 | . . . . . . . . 11 Rewire . | . . . . . . . . . Trap . | . . . . . . . . . Miscellaneous . | . . . . . . . . . Route ------- -11/Junkyard -10/Materials (discovered 4 exits: *Mat x3 / *Min) -10/Mines (discovered 2 exits: *Mat x2) -9/Materials (discovered 4 exits: *Min x2 / *Sto x2) -9/Mines (discovered 3 exits: *Mat x2 / *Exi) -9/Exiles -8/Mines (discovered 2 exits: *Mat x2) -8/Materials -8/Garrison (discovered 1 exit: [*Fac]) History --------- Turn | Location | Event 51 | -11/Junkyard | Discovered new exit (range 15) 110 | -11/Junkyard | Entered Materials 310 | -10/Materials | Build established: Mutant 413 | -10/Materials | Identified exit to Mines 413 | -10/Materials | Central database locked down 612 | -10/Materials | Discovered new exit (range 18) 904 | -10/Materials | Discovered new exit (range 16) 1199 | -10/Materials | Discovered new exit (range 8) 1650 | -10/Materials | Entered Mines 1660 | -10/Mines | Assisted by bots powering up and referring to "LRC-V3" 1841 | -10/Mines | Found a damaged Exp. Sensor Array with a note attached 1865 | -10/Mines | Found Prototype Device 1920 | -10/Mines | Discovered new exit (range 10) 2274 | -10/Mines | Assembled infested the area 2305 | -10/Mines | Released all parts (3) 2306 | -10/Mines | Core integrity fell below 50% 2334 | -10/Mines | Lost 4 parts (1p1n2w) 2342 | -10/Mines | Discovered new exit (range 9) 2350 | -10/Mines | Entered Materials 2350 | -9/Materials | Evolved 2 slots: Utility x2 2364 | -9/Materials | Discovered new exit (range 13) 2393 | -9/Materials | Discovered new exit (range 6) 2409 | -9/Materials | Identified exit to Mines 2409 | -9/Materials | Identified exit to Storage 2431 | -9/Materials | Entered Mines 2446 | -9/Mines | Received a Rocket Launcher from a helpful Derelict 2615 | -9/Mines | Central database locked down 2649 | -9/Mines | Build established: Hacker-Mutant 2846 | -9/Mines | Found a hidden stash of uninstalled traps 2978 | -9/Mines | Discovered new exit (range 9) 3037 | -9/Mines | Learned location of Storage (-9) 3106 | -9/Mines | Discovered new exit (range 10) 3250 | -9/Mines | Deemed a non-threat by the Exiles lab entrance 3250 | -9/Mines | Discovered new exit (range 5) 3488 | -9/Mines | Entered Exiles 3488 | -9/Exiles | Accompanied by 2 allies 3517 | -9/Exiles | Met 8R-AWN 3518 | -9/Exiles | Led the pair of lost Derelicts to a safe place 3539 | -9/Exiles | Met EX-HEX 3572 | -9/Exiles | Met EX-BIN 3586 | -9/Exiles | Aligned with FarCom system 3587 | -9/Exiles | Given EX-Vault access code 3614 | -9/Exiles | Opened EX-Vault 3622 | -9/Exiles | Found 0b10 Alert Chip 3648 | -9/Exiles | Warned to stay clear of 0b10 Research branches 3681 | -9/Exiles | Met EX-DEC 3690 | -9/Exiles | Learned location of Zion (-6) 3733 | -9/Exiles | Discovered new exit (range 14) 3747 | -9/Exiles | Left Exiles lab with 0b10 Alert Chip 3747 | -9/Exiles | Entered Mines 3867 | -8/Mines | Discovered new exit (range 8) 4317 | -8/Mines | Discovered new exit (range 7) 4376 | -8/Mines | Entered Materials 4376 | -8/Materials | Evolved 2 slots: Utility x2 4732 | -8/Materials | Identified exit to Garrison 4732 | -8/Materials | Entered Garrison 4810 | -8/Garrison | Lost 4 parts (1p1n2w) 4924 | -8/Garrison | Lost 5 parts (1p3u1w) 4966 | -8/Garrison | Triggered checkpoint 5060 | -8/Garrison | Triggered checkpoint 5071 | -8/Garrison | Core integrity fell below 50% 5206 | -8/Garrison | Build established: Scavenger-Mutant 5261 | -8/Garrison | Triggered checkpoint 5438 | -8/Garrison | Triggered checkpoint 5514 | -8/Garrison | Discovered new exit (range 15) 5655 | -8/Garrison | Core integrity fell below 20% 5684 | -8/Garrison | Lost 9 parts (1p2n3u3w) 5964 | -8/Garrison | Triggered checkpoint 6058 | -8/Garrison | Destroyed by X-57 Shotgunner with High-powered Shotgun Last Messages --------------- 05954_ Acquired Gauss Rifle. 05955_ Acquired 10 matter. 05960_ System corrupted: Matter fused (-7). 05964_ Beams of light sweep through the air. An alarm sounds. 06014_ System corrupted: FCS attempts to trigger Gauss Rifle. 06014_ System corrupted: Gauss Rifle misfires. 06014_ Slug penetrates Wall. 06035_ X-57 Shotgunner springs to life. 06037_ System corrupted: Energy discharge (-37). 06037_ Slug penetrates X-57 Shotgunner. 06043_ Slug penetrates Wall. 06044_ Mic. Nuclear Core destroyed. 06048_ Beam Rifle destroyed. 06049_ Slug penetrates X-57 Shotgunner. 06051_ Slug penetrates Wall. 06052_ Imp. Heat Sink destroyed. 06053_ Slug penetrates X-57 Shotgunner. 06055_ Slug penetrates Wall. 06057_ System corrupted: IFF burst signal emitted. 06057_ Slug penetrates Wall. Map ----- +----------------------------------------------------+ | ????????????????????############ ## ##^ ^#### | | ?????????????????????????????### ## ## #??? | | ?????????????????????????????# "??? | | ?????????????????????????????# "??? | | ?????????????????????????????# "??? | | ?????????????????????????????# "??? | | ?????????????????????????????### ## ## #??? | | ???????????????????????????????# ## ## #??? | | ???????????????????????????????# ?? | | ???????????????????????????????# ?? | | ???????????????????????????????# #??? | | ???????????????????????????????# ##""""## ##??? | | ???????????????????????????????# #?g????? ????? | | ???????????????????????????????# #?????????????? | | ???????????????????????????????# #?????????????? | | ???????????????sss?????????????# #?????????????? | | ???????????????????????????????# #?????????????? | | ???????????????????????????????# #?????????????? | | ????????????#################### ^^#?????????????? | | ??????????? ^#?????????????? | | ??????????? #?????????????? | | ??????????? #?????????????? | | ???????????????##+#######+##########?????????????? | | ????????????????????????# #??????????????????????? | | ????????????????????????# #??????????????????????? | | ????????????????????????#@#??????????????????????? | | ????????????????????????# #??????????????????????? | | ????????????????????????# #??????????????????????? | | ????????????????????????# #??????????????????????? | | ????????????????????????# #??????????????????????? | | ????????????????????????# #??????????????????????? | | ????????????????????????# #??????????????????????? | | ????????????????????????# #??????????????????????? | | ????????????????????????# #??????????????????????? | | ????????????????????????? ???????????????????????? | | ????????????????????????? ???????????????????????? | | ????????????????????????? ???????????????????????? | | ?????????????????????????x???????????????????????? | | ????????????????????????? ???????????????????????? | | ?????????????????????????#???????????????????????? | | ?????????????????????????????????????????????????? | | ?????????????????????????????????????????????????? | | ?????????????????????????????????????????????????? | | ?????????????????????????????????????????????????? | | ?????????????????????????????????????????????????? | | ?????????????????????????????????????????????????? | | ?????????????????????????????????????????????????? | | ?????????????????????????????????????????????????? | | ?????????????????????????????????????????????????? | | ?????????????????????????????????????????????????? | +----------------------------------------------------+ Best States ------------- Heat Dissipation 78 Energy Generation 18 Energy Capacity 275 Matter Stores 300 Matter Capacity 300 Sight Range 18 Terrain Scan Density 10 Armor Coverage 225 Evasion (%) 50 Recoil Reduction 2 Offensive Hacking 40 Item Schematics ----------------- None Robot Schematics ------------------ None Fabricated ------------ Nothing Alien Tech Used ----------------- None Achievements -------------- None Challenges ------------ None Game ------ Seed SapperDeuteriumScreen Manual? 0 Play Time 00:34:50 Cumulative 616.5 hours Start 2023.04.03 @ 16:15:06 End 2023.04.03 @ 16:43:25 Sessions 1 Manual Loads 0 Difficulty Rogue Special Mode None Game No. 634 Rogue 633 Adventurer 0 Explorer 1 Win Type - Total 30 Types 21/0/6/3/0/0/0/0/0 Lore% 84 Gallery% 92 Achievement% 78 Wizard Run 0 Options --------- ASCII 0 Keyboard 1 Movement Vi Keybinds 0 Fullscreen 1 Font 18/SmallcapsGlow Map View 76x50 Tactical HUD 1 Map Filters NONE Filters NONE Steam 1 RUN: 04f8034d-5c71-4de4-8754-882519868f02